Workbook

Sheet Nómina
G1: Diligencie los siguientes valores de referencia: | O1: Periodo de pago
G2: Salario mínimo | J2: 908526 | O2: Septiembre 01 2021 - Septiembre 30 2021
G3: Auxilio de transporte | J3: 106454 | O3: Fecha de liquidación
G4: ¿Está exonerado del pago de aportes? | J4: Si | O4: 2021-09-30
B6: Nombre del empleado | C6: Devengado | K6: Deducciones | P6: Neto pagado | Q6: Firma del empleado
C7: Salario básico | D7: Días liquidados | E7: Salario devengado | F7: Horas extras | G7: Recargos nocturnos | H7: Trabajo dominical y festivo | I7: Auxilio de transporte | J7: Total devengado | K7: Salud | L7: Pensión | M7: Fondo de solidaridad pensional | N7: Retención en la fuente | O7: Otras deducciones
B8: Pedro | C8: 1200000 | D8: 30 | E8: =(C8/30)*D8 -> 1200000 | F8: 150000 | G8: 85000 | H8: 170000 | I8: =IF(C8>$J$2*2,0,($J$3/30*D8)) -> 106454 | J8: =SUM(E8:I8) -> 1711454 | K8: =(J8-I8)*0.04 -> 64200 | L8: =(J8-I8)*0.04 -> 64200 | M8: =(J8-I8)*(IF(AND(((J8-I8)/$J$2)>=4,((J8-I8)/$J$2)<16),1,IF(AND(((J8-I8)/$J$2)>=16,((J8-I8)/$J$2)<=17),1.2,IF(AND(((J8-I8)/$J$2)>17,((J8-I8)/$J$2)<=18),1.4,IF(AND(((J8-I8)/$J$2)>18,((J8-I8)/$J$2)<=19),1.6,IF(AND(((J8-I8)/$J$2)>19,((J8-I8)/$J$2)<=20),1.8,IF(((J8-I8)/$J$2)>20,2,0))))))/100) -> 0 | N8: 0 | O8: 0 | P8: =J8-K8-L8-M8-N8-O8 -> 1583054
B9: María | C9: 6000000 | D9: 30 | E9: =(C9/30)*D9 -> 6000000 | F9: 180000 | I9: 0 | J9: =SUM(E9:I9) -> 6180000 | K9: =(J9-I9)*0.04 -> 247200 | L9: =(J9-I9)*0.04 -> 247200 | M9: 61800 | P9: =J9-K9-L9-M9-N9-O9 -> 5623800
B10: Oscar | C10: 10000000 | D10: 30 | E10: 7000000 | F10: 0 | I10: 0 | J10: 7000000 | K10: 280000 | L10: 280000 | M10: 70000 | P10: 6370000
B11: Angela | C11: 1400000 | D11: 30 | E11: 1400000 | F11: 120000 | I11: 106454 | J11: 1626454 | K11: 60800 | L11: 60800 | M11: 0 | P11: 1504854
B12: Arturo | C12: 1280000 | D12: 30 | E12: 1280000 | F12: 0 | I12: 106454 | J12: 1386454 | K12: 51200 | L12: 51200 | M12: 0 | P12: 1284054
B13: Angie | C13: 1600000 | D13: 15 | E13: 800000 | F13: 0 | I13: 53227 | J13: 853227 | K13: 32000 | L13: 32000 | M13: 0 | P13: 789227
B14: Camila | C14: 900000 | D14: 30 | E14: 900000 | F14: 0 | I14: 106454 | J14: 1006454 | K14: 36000 | L14: 36000 | M14: 0 | P14: 934454
B15: Alejandra | C15: 900000 | D15: 30 | E15: 900000 | F15: 0 | I15: 106454 | J15: 1006454 | K15: 36000 | L15: 36000 | M15: 0 | P15: 934454
B16: Cleopatra | C16: 900000 | D16: 30 | E16: 900000 | F16: 130000 | I16: 106454 | J16: 1136454 | K16: 41200 | L16: 41200 | M16: 0 | P16: 1054054
B17: Juana de Arco | C17: 900000 | D17: 20 | E17: 600000 | F17: 0 | I17: 70969.33333 | J17: 670969.3333 | K17: 24000 | L17: 24000 | M17: 0 | P17: 622969.3333
B18: Magda | C18: 10000000 | D18: 30 | E18: 8000000 | F18: 0 | I18: 0 | J18: 8000000 | K18: 320000 | L18: 320000 | M18: 80000 | P18: 7280000
B19: Inés | C19: 1000000 | D19: 30 | E19: 1000000 | F19: 210000 | I19: 106454 | J19: 1316454 | K19: 48400 | L19: 48400 | M19: 0 | P19: 1219654
B20: Clara | C20: 1000000 | D20: 30 | E20: 1000000 | F20: 0 | I20: 106454 | J20: 1106454 | K20: 40000 | L20: 40000 | M20: 0 | P20: 1026454
B21: César | C21: 1000000 | D21: 30 | E21: 1000000 | F21: 0 | I21: 106454 | J21: 1106454 | K21: 40000 | L21: 40000 | M21: 0 | P21: 1026454
B22: Susana | C22: 1000000 | D22: 10 | E22: 333333.3333 | F22: 60000 | I22: 35484.66667 | J22: 428818 | K22: 15733.33333 | L22: 15733.33333 | M22: 0 | P22: 397351.3333
B23: Totales | E23: =SUM(E8:E22) -> 32313333.33 | F23: =SUM(F8:F22) -> 850000 | G23: 85000 | H23: 170000 | I23: 1117767 | J23: 34536100.33 | K23: 1336733.333 | L23: 1336733.333 | M23: 211800 | N23: 0 | O23: 0 | P23: =SUM(P8:P22) -> 31650833.67
B25: =ROUND(P23,0) -> 31650834 | D25: =LETRAS(B25) -> Treinta y Un Millones Seiscientos Cincuenta Mil Ochocientos Treinta y Cuatro Pesos
B28: Comprobante de Pago Nº: | J28: Provisiones de nómina a cargo del empleador.
B30: Fecha de | C30: =O4 -> 2021-09-30 | J30: Aportes a pensión | M30: =(J23-I23)*0.12 -> 4010200
J31: Aportes a salud | M31: =IF(J4="Si",(SUMIF(J8:J22,">"&J2*10,J8:J22))*0.085,(J23-I23)*0.085) -> 0
B32: Observaciones | J32: Aportes a riesgos laborales | M32: =(J23-I23)*0.00522 -> 174443.7
J33: Sena | M33: =IF(J4="Si",(SUMIF(J8:J22,">"&J2*10,J8:J22))*0.02,(J23-I23)*0.02) -> 0
J34: Icbf | M34: =IF(J4="Si",(SUMIF(J8:J22,">"&J2*10,J8:J22))*0.03,(J23-I23)*0.03) -> 0
J35: Cajas de compensación | M35: =(J23-I23)*0.04 -> 1336733.333
J36: Prima de servicios | M36: =J23*0.0833 -> 2876857.158
B37: Elaborador Por: | C37: Revisado Por: | G37: Aprobado Por: | J37: Cesantía | M37: =J23*0.0833 -> 2876857.158
J38: Intereses sobre cesantías | M38: =M37*0.12 -> 345222.8589
J39: Provisón de vacaciones | M39: =(J23-F23-H23-I23)*0.0417 -> 1351010.5
J40: Total provisiones | M40: =SUM(M30:M39) -> 12971324.71

Sheet Horas extras y demás
B1: Horas extrsa, recargos nocturnos, dominicales y festivos
B2: Seleccione el trabajador a liquidar: | C2: Cleopatra | D2: Sueldo de | G2: =C2 -> Cleopatra | H2: =VLOOKUP(G2,Nómina!B8:C22,2,0) -> 900000
B3: Concepto | C3: Porcentaje de recargo | D3: Factor | E3: Valor hora ordinaria | F3: Valor del recargo | G3: Valor de la hora con el recargo | H3: Ingrese las horas trabajadas | I3: Valor total
B4: Recargo Nocturno | C4: 0.35 | D4: 1.35 | E4: =$H$2/240 -> 3750 | F4: =E4*C4 -> 1312.5 | G4: =E4+F4 -> 5062.5 | H4: 2 | I4: =G4*H4 -> 10125
B5: Hora extra diurna | C5: 0.25 | D5: 1.25 | E5: =$H$2/240 -> 3750 | F5: =E5*C5 -> 937.5 | G5: =E5+F5 -> 4687.5 | H5: 5 | I5: =G5*H5 -> 23437.5
B6: Hora extra nocturna | C6: 0.75 | D6: 1.75 | E6: 3750 | F6: 2812.5 | G6: 6562.5 | H6: 2 | I6: 13125
B7: Hora Ordinaria dominical o festivo | C7: 0.75 | D7: 1.75 | E7: 3750 | F7: 2812.5 | G7: 6562.5 | H7: 1 | I7: 6562.5
B8: Hora extra diurna dominical o festivo | C8: 1 | D8: 2 | E8: 3750 | F8: 3750 | G8: 7500 | H8: 3 | I8: 22500
B9: Hora extra nocturna dominical o festivo | C9: 1.5 | D9: 2.5 | E9: 3750 | F9: 5625 | G9: 9375 | H9: 4 | I9: 37500
B10: Descargue aquí el liquidador de horas extras | H10: Subtotal trabajo extra | I10: =I5+I6 -> 36562.5
H11: Subtotal recargo nocturno | I11: =I4 -> 10125
H12: Subtotal trabajo dominical y festivo | I12: =I7+I8+I9 -> 66562.5
